[Event "Romanian Women Championship 2024"]
[Site "Eforie Nord"]
[Date "2024.03.01"]
[Round "8.4"]
[White "Trifoi, Mihaela-Ioana"]
[Black "Maria, Lia-Alexandra"]
[Result "1-0"]
[ECO "C02"]
[WhiteElo "2003"]
[BlackElo "1937"]
[Annotator "NA RC"]
[PlyCount "107"]
[EventDate "2024.02.24"]
[EventType "swiss"]
[EventCountry "ROU"]
[SourceTitle "playchess.com"]
[Source "ChessBase"]
[SourceQuality "1"]
[TimeControl "40/5400+30:900+30"]

1. e4 {[%emt 0:00:04]} e6 {[%emt 0:00:06]} 2. d4 {[%emt 0:00:28]} d5 {[%emt 0:00:10]} 3. e5 {[%emt 0:10:54]} c5 {[%emt 0:01:44]} 4. c3 {[%emt 0:00:05]} Nc6 {[%emt 0:00:06]} 5. Nf3 {[%emt 0:00:04]} Bd7 {[%emt 0:00:05]} 6. Be2 {[%emt 0:02:45]} f6 {[%emt 0:08:24]} 7. O-O {[%emt 0:00:39]} fxe5 {[%emt 0:03:27]} 8. dxe5 {[%emt 0:00:10]} Qc7 {[%emt 0:05:05]} 9. Bf4 {[%emt 0:03:17]} O-O-O {[%emt 0:00:25]} 10. Na3 {[%emt 0:13:04]} a6 {[%emt 0:00:42]} 11. Nc2 {[%emt 0:00:07]} Nh6 {[%emt 0:02:00]} 12. Re1 {[%emt 0:00:14]} Nf7 {[%emt 0:01:15]} 13. Bf1 {[%emt 0:00:18]} Be7 {[%emt 0:00:28]} 14. Ne3 {[%emt 0:01:43]} Be8 {[%emt 0:05:06]} 15. a3 {[%emt 0:02:14]} g5 {[%emt 0:02:36]} 16. Bg3 {[%emt 0:00:13]} h5 {[%emt 0:03:03]} 17. h3 {[%emt 0:00:32]} Nh6 {[%emt 0:05:31]} 18. b4 {[%emt 0:01:28]} Nf5 {[%emt 0:04:29]} 19. Bh2 {[%emt 0:04:03]} g4 {[%emt 0:04:15]} 20. hxg4 {[%emt 0:01:05]} Nxe3 {[%emt 0:05:23]} 21. Rxe3 {[%emt 0:00:11]} hxg4 {[%emt 0:00:12]} 22. Nd2 {[%emt 0:00:51]} Bg5 {[%emt 0:00:23]} 23. Qxg4 {[%emt 0:03:04]} Bxe3 {[%emt 0:00:58]} 24. fxe3 {[%emt 0:00:06]} Qe7 {[%emt 0:02:01]} 25. Bf4 {[%emt 0:05:21]} Bh5 {[%emt 0:01:48]} 26. Qg5 {[%emt 0:01:07]} Qh7 {[%emt 0:05:08]} 27. Qh4 {[%emt 0:17:49]} Qc2 {[%emt 0:06:34]} 28. Qe1 {[%emt 0:00:16]} Qf5 {[%emt 0:01:28]} 29. bxc5 {[%emt 0:07:07]} Nxe5 {[%emt 0:02:56]} 30. Qb1 {[%emt 0:00:35]} Nc6 {[%emt 0:13:08]} 31. Qb6 {[%emt 0:00:21]} e5 {[%emt 0:00:30]} 32. Rb1 {[%emt 0:05:09]} Qd7 {[%emt 0:02:49]} 33. Bxa6 {[%emt 0:00:38]} Rh7 {[%emt 0:00:26]} 34. Bh2 {[%emt 0:01:56]} Rg8 {[%emt 0:01:14]} 35. Bxe5 {[%emt 0:03:15]} Be8 {[%emt 0:08:39]} 36. Bf4 {[%emt 0:05:03]} Qg7 {[%emt 0:03:38]} 37. g3 {[%emt 0:02:32]} Rgh8 {[%emt 0:01:11]} 38. Nf1 {[%emt 0:00:08]} Rh1+ {[%emt 0:00:50]} 39. Kf2 {[%emt 0:00:04]} R8h7 {[%emt 0:01:12]} 40. Bd3 {[%emt 0:00:00]} Bg6 {[%emt 0:00:00]} 41. Qb5 {[%emt 0:06:04]} Ne5 {[%emt 0:02:05]} 42. Bf5+ {[%emt 0:03:25]} Kb8 {[%emt 0:02:03]} 43. Bxg6 {[%emt 0:00:43]} Qxg6 {[%emt 0:00:58]} 44. Bxe5+ {[%emt 0:00:06]} Kc8 {[%emt 0:00:53]} 45. Rb2 {[%emt 0:02:58]} Qe6 {[%emt 0:03:32]} 46. Bf4 {[%emt 0:01:18]} Qe4 {[%emt 0:02:03]} 47. g4 {[%emt 0:00:14]} R1h3 {[%emt 0:02:41]} 48. Ng3 {[%emt 0:06:47]} Rh2+ {[%emt 0:01:02]} 49. Kg1 {[%emt 0:00:12]} Rxb2 {[%emt 0:03:44]} 50. Qxb2 {[%emt 0:00:05]} Qd3 {[%emt 0:00:10]} 51. g5 {[%emt 0:01:12]} Qd1+ {[%emt 0:00:37]} 52. Kg2 {[%emt 0:00:10]} Qg4 {[%emt 0:00:18]} 53. c6 {[%emt 0:02:26]} Rf7 {[%emt 0:01:30]} 54. Qb6 {[%emt 0:00:35]} 1-0

[Event "Romanian Women Championship 2024"]
[Site "Eforie Nord"]
[Date "2024.03.01"]
[Round "8.5"]
[White "Stanciu, Andreea-Briana"]
[Black "Pirvulescu, Ekaterina"]
[Result "1-0"]
[ECO "B48"]
[WhiteElo "1960"]
[BlackElo "2091"]
[Annotator "NA RC"]
[PlyCount "73"]
[EventDate "2024.02.24"]
[EventType "swiss"]
[EventCountry "ROU"]
[SourceTitle "playchess.com"]
[Source "ChessBase"]
[SourceQuality "1"]
[TimeControl "40/5400+30:900+30"]

1. e4 {[%emt 0:00:06]} c5 {[%emt 0:00:11]} 2. Nf3 {[%emt 0:00:07]} e6 {[%emt 0:00:12]} 3. d4 {[%emt 0:00:10]} cxd4 {[%emt 0:00:09]} 4. Nxd4 {[%emt 0:00:06]} Nc6 {[%emt 0:00:06]} 5. Nc3 {[%emt 0:00:07]} Qc7 {[%emt 0:00:16]} 6. Be3 {[%emt 0:00:07]} a6 {[%emt 0:00:06]} 7. a3 {[%emt 0:01:01]} b5 {[%emt 0:00:36]} 8. Nxc6 {[%emt 0:01:33]} Qxc6 {[%emt 0:03:45]} 9. Bd3 {[%emt 0:02:59]} Bb7 {[%emt 0:02:56]} 10. Qd2 {[%emt 0:01:41]} b4 {[%emt 0:08:42]} 11. axb4 {[%emt 0:01:57]} Bxb4 {[%emt 0:01:08]} 12. Bd4 {[%emt 0:00:05]} f6 {[%emt 0:09:06]} 13. O-O {[%emt 0:03:51]} e5 $14 {[%emt 0:07:49]} 14. Be3 {[%emt 0:00:05]} Ne7 {[%emt 0:00:04]} 15. Qe2 {[%emt 0:08:14]} Bxc3 {[%emt 0:02:29]} 16. bxc3 {[%emt 0:00:06]} O-O {[%emt 0:05:39]} 17. c4 {[%emt 0:15:42]} f5 {[%emt 0:06:36]} 18. f3 {[%emt 0:00:05]} f4 {[%emt 0:00:43]} 19. Bf2 {[%emt 0:00:05]} d6 {[%emt 0:03:56]} 20. Rfb1 {[%emt 0:05:16]} Qc7 {[%emt 0:05:46]} 21. Bb6 {[%emt 0:01:57]} Qc8 {[%emt 0:07:34]} 22. c5 {[%emt 0:01:01]} dxc5 {[%emt 0:00:37]} 23. Ra5 {[%emt 0:00:19]} Nc6 {[%emt 0:04:53]} 24. Rxc5 {[%emt 0:01:26]} Kh8 {[%emt 0:03:06]} 25. Bc4 {[%emt 0:04:11]} Re8 {[%emt 0:12:55]} 26. Rd1 {[%emt 0:02:04]} Re7 {[%emt 0:02:45]} 27. Rd6 {[%emt 0:02:30]} Qe8 {[%emt 0:01:01]} 28. c3 {[%emt 0:02:11]} h6 {[%emt 0:03:00]} 29. Qd1 {[%emt 0:02:58]} Kh7 {[%emt 0:02:04]} 30. Bb3 {[%emt 0:02:26]} Rc8 {[%emt 0:01:22]} 31. Ba4 {[%emt 0:05:02]} Re6 {[%emt 0:01:24]} 32. Rd7 {[%emt 0:00:15]} Re7 {[%emt 0:00:21]} 33. Rcd5 {[%emt 0:00:56]} Ba8 {[%emt 0:01:49]} 34. Rd8 {[%emt 0:03:53]} Rxd8 {[%emt 0:01:12]} 35. Rxd8 {[%emt 0:00:05]} Qf7 {[%emt 0:01:51]} 36. Rxa8 {[%emt 0:00:08]} Qc4 {[%emt 0:00:56]} 37. Rc8 {[%emt 0:00:31]} 1-0

[Event "Romanian Women Championship 2024"]
[Site "Eforie Nord"]
[Date "2024.03.01"]
[Round "8.6"]
[White "Sunea, Sara Maria"]
[Black "Obada, Ema"]
[Result "0-1"]
[ECO "C17"]
[WhiteElo "1561"]
[BlackElo "1969"]
[Annotator "NA RC"]
[PlyCount "62"]
[EventDate "2024.02.24"]
[EventType "swiss"]
[EventCountry "ROU"]
[SourceTitle "playchess.com"]
[Source "ChessBase"]
[SourceQuality "1"]
[TimeControl "40/5400+30:900+30"]

1. e4 {[%emt 0:00:03]} e6 {[%emt 0:00:05]} 2. d4 {[%emt 0:00:08]} d5 {[%emt 0:00:04]} 3. Nc3 {[%emt 0:00:07]} Bb4 {[%emt 0:00:06]} 4. e5 {[%emt 0:00:05]} c5 {[%emt 0:00:07]} 5. Bd2 {[%emt 0:00:07]} Ne7 {[%emt 0:00:28]} 6. a3 {[%emt 0:00:06]} Bxc3 {[%emt 0:04:47]} 7. Bxc3 {[%emt 0:00:08]} Nbc6 {[%emt 0:10:08]} 8. Nf3 {[%emt 0:03:22]} Nf5 {[%emt 0:20:07]} 9. Be2 {[%emt 0:17:59]} O-O {[%emt 0:06:44]} 10. Qd2 {[%emt 0:10:16]} c4 {[%emt 0:22:20]} 11. h4 {[%emt 0:02:11]} f6 {[%emt 0:04:09]} 12. g4 {[%emt 0:05:03]} Nfe7 {[%emt 0:00:34]} 13. Rg1 {[%emt 0:19:15]} Rb8 {[%emt 0:01:56]} 14. g5 {[%emt 0:03:00]} f5 {[%emt 0:05:32]} 15. Bb4 {[%emt 0:03:43]} Nxb4 {[%emt 0:00:13]} 16. axb4 {[%emt 0:00:01]} Qb6 {[%emt 0:01:27]} 17. c3 {[%emt 0:01:26]} Bd7 {[%emt 0:00:45]} 18. Kf1 {[%emt 0:04:52]} Ra8 {[%emt 0:00:37]} 19. Kg2 {[%emt 0:03:27]} a5 {[%emt 0:00:28]} 20. bxa5 {[%emt 0:01:41]} Rxa5 {[%emt 0:00:04]} 21. Rab1 {[%emt 0:01:53]} Ra2 {[%emt 0:01:30]} 22. Bd1 {[%emt 0:03:22]} Rfa8 {[%emt 0:01:28]} 23. Qc1 {[%emt 0:00:24]} Ba4 {[%emt 0:01:09]} 24. Nd2 {[%emt 0:02:08]} Bxd1 {[%emt 0:00:56]} 25. Rxd1 {[%emt 0:00:02]} Qa6 {[%emt 0:01:21]} 26. Re1 {[%emt 0:03:57]} Nc6 {[%emt 0:00:49]} 27. Kg1 {[%emt 0:01:53]} b5 {[%emt 0:06:18]} 28. b4 {[%emt 0:04:19]} Qa7 {[%emt 0:01:21]} 29. Qd1 {[%emt 0:02:42]} Nxd4 {[%emt 0:01:24]} 30. cxd4 {[%emt 0:02:16]} Qxd4 {[%emt 0:00:05]} 31. Re2 {[%emt 0:01:10]} c3 {[%emt 0:00:41]} 0-1

[Event "Romanian Women Championship 2024"]
[Site "Eforie Nord"]
[Date "2024.03.01"]
[Round "8.7"]
[White "Schiopu, Oana-Magdalena"]
[Black "Hoanca, Alexia-Ioana"]
[Result "1-0"]
[ECO "B18"]
[WhiteElo "1750"]
[BlackElo "1748"]
[Annotator "NA RC"]
[PlyCount "95"]
[EventDate "2024.02.24"]
[EventType "swiss"]
[EventCountry "ROU"]
[SourceTitle "playchess.com"]
[Source "ChessBase"]
[SourceQuality "1"]
[TimeControl "40/5400+30:900+30"]

1. e4 {[%emt 0:00:03]} c6 {[%emt 0:00:03]} 2. d4 {[%emt 0:00:07]} d5 {[%emt 0:00:07]} 3. Nc3 {[%emt 0:00:09]} dxe4 {[%emt 0:00:21]} 4. Nxe4 {[%emt 0:00:07]} Bf5 {[%emt 0:00:07]} 5. Ng3 {[%emt 0:00:14]} Bg6 {[%emt 0:00:26]} 6. N1e2 {[%emt 0:00:37]} Nf6 {[%emt 0:01:00]} 7. Nf4 {[%emt 0:02:45]} e5 {[%emt 0:00:34]} 8. Nxg6 {[%emt 0:05:09]} hxg6 {[%emt 0:00:07]} 9. Be3 {[%emt 0:00:14]} Nd5 {[%emt 0:00:28]} 10. c3 {[%emt 0:02:07]} Nxe3 {[%emt 0:09:02]} 11. fxe3 {[%emt 0:00:09]} Nd7 {[%emt 0:01:21]} 12. Bc4 {[%emt 0:06:22]} Qe7 {[%emt 0:16:34]} 13. Qe2 {[%emt 0:10:03]} O-O-O {[%emt 1:06:50]} 14. O-O-O {[%emt 1:09:24]} e4 {[%emt 0:00:00]} 15. d5 {[%emt 0:00:00]} c5 {[%emt 0:00:00]} 16. d6 {[%emt 0:00:00]} Qe8 {[%emt 0:00:00]} 17. Bb5 {[%emt 0:00:00]} f5 {[%emt 0:00:00]} 18. Qc4 {[%emt 0:00:00]} Kb8 {[%emt 0:00:00]} 19. Ne2 {[%emt 0:00:00]} g5 {[%emt 0:00:00]} 20. h4 {[%emt 0:00:00]} g6 {[%emt 0:00:00]} 21. Rh3 {[%emt 0:00:00]} g4 {[%emt 0:00:00]} 22. Rg3 {[%emt 0:00:00]} Bg7 {[%emt 0:00:00]} 23. Bxd7 {[%emt 0:00:00]} Rxd7 {[%emt 0:00:00]} 24. Qxc5 {[%emt 0:00:00]} Be5 {[%emt 0:00:00]} 25. Nf4 {[%emt 0:00:00]} Bxf4 {[%emt 0:02:09]} 26. exf4 {[%emt 0:00:00]} Qe6 {[%emt 0:00:07]} 27. Qe5 {[%emt 0:00:00]} Qxe5 {[%emt 0:02:17]} 28. fxe5 {[%emt 0:00:00]} Re8 {[%emt 0:00:09]} 29. Rd5 {[%emt 0:00:00]} b6 {[%emt 0:00:32]} 30. Kd2 {[%emt 0:00:00]} Kb7 {[%emt 0:01:17]} 31. Ke3 {[%emt 0:00:00]} Kc6 {[%emt 0:00:37]} 32. c4 {[%emt 0:00:00]} Rh8 {[%emt 0:01:02]} 33. b4 {[%emt 0:00:00]} Re8 {[%emt 0:01:06]} 34. Kf4 {[%emt 0:00:00]} a6 {[%emt 0:00:25]} 35. a4 {[%emt 0:00:00]} Rdd8 {[%emt 0:00:20]} 36. Rc3 {[%emt 0:00:00]} Kd7 {[%emt 0:00:38]} 37. b5 {[%emt 0:00:00]} Ke6 {[%emt 0:00:41]} 38. bxa6 {[%emt 0:00:00]} Ra8 {[%emt 0:00:20]} 39. d7 {[%emt 0:00:00]} Red8 {[%emt 0:00:15]} 40. Rd6+ {[%emt 0:00:00]} Ke7 {[%emt 0:00:00]} 41. Rxg6 {[%emt 0:00:00]} Rxa6 {[%emt 0:01:02]} 42. e6 {[%emt 0:00:00]} Ra5 {[%emt 0:01:52]} 43. Rb3 {[%emt 0:00:00]} Rxa4 {[%emt 0:00:48]} 44. Rxb6 {[%emt 0:00:00]} e3 {[%emt 0:02:52]} 45. Rg7+ {[%emt 0:00:00]} Kf6 {[%emt 0:01:10]} 46. e7+ {[%emt 0:00:00]} Kxg7 {[%emt 0:00:15]} 47. exd8=Q {[%emt 0:00:00]} e2 {[%emt 0:00:10]} 48. Qf6+ {[%emt 0:00:00]} 1-0

[Event "Romanian Women Championship 2024"]
[Site "Eforie Nord"]
[Date "2024.03.01"]
[Round "8.8"]
[White "Paraschiv, Petronela-Alexandra"]
[Black "Chicarosie, Ioana-Bianca"]
[Result "1/2-1/2"]
[ECO "D00"]
[WhiteElo "1875"]
[BlackElo "1705"]
[Annotator "NA RC"]
[PlyCount "74"]
[EventDate "2024.02.24"]
[EventType "swiss"]
[EventCountry "ROU"]
[SourceTitle "playchess.com"]
[Source "ChessBase"]
[SourceQuality "1"]
[TimeControl "40/5400+30:900+30"]

1. d4 {[%emt 0:00:03]} d5 {[%emt 0:00:06]} 2. Nc3 {[%emt 0:00:03]} e6 {[%emt 0:00:17]} 3. Bf4 {[%emt 0:00:24]} Bd6 {[%emt 0:00:26]} 4. Bxd6 {[%emt 0:01:48]} Qxd6 {[%emt 0:00:24]} 5. e3 {[%emt 0:00:56]} a6 {[%emt 0:01:13]} 6. Qg4 {[%emt 0:05:36]} g6 {[%emt 0:02:13]} 7. Bd3 {[%emt 0:01:20]} f5 {[%emt 0:04:38]} 8. Qh4 {[%emt 0:04:46]} Qe7 {[%emt 0:01:34]} 9. Qxe7+ {[%emt 0:00:49]} Kxe7 {[%emt 0:02:01]} 10. h4 {[%emt 0:01:21]} Nf6 {[%emt 0:00:41]} 11. Nf3 {[%emt 0:01:35]} Nbd7 {[%emt 0:01:46]} 12. b4 {[%emt 0:01:57]} c6 {[%emt 0:13:37]} 13. a4 {[%emt 0:06:52]} b6 {[%emt 0:02:28]} 14. O-O {[%emt 0:04:56]} a5 {[%emt 0:02:28]} 15. Rfb1 {[%emt 0:04:11]} axb4 {[%emt 0:00:59]} 16. Rxb4 {[%emt 0:02:32]} Ba6 {[%emt 0:00:16]} 17. Rbb1 {[%emt 0:10:00]} Rhb8 {[%emt 0:08:09]} 18. Kf1 {[%emt 0:04:38]} Ne4 {[%emt 0:01:59]} 19. Ne2 {[%emt 0:03:09]} Kd6 {[%emt 0:08:07]} 20. Ke1 {[%emt 0:01:43]} Ra7 {[%emt 0:02:58]} 21. Nd2 {[%emt 0:10:59]} Bxd3 {[%emt 0:04:15]} 22. cxd3 {[%emt 0:00:06]} Nxd2 {[%emt 0:00:04]} 23. Kxd2 {[%emt 0:00:05]} Rba8 {[%emt 0:00:06]} 24. Nc3 {[%emt 0:03:48]} b5 {[%emt 0:02:03]} 25. Ra2 {[%emt 0:05:17]} Nb6 {[%emt 0:03:51]} 26. Kc2 {[%emt 0:01:02]} Kc7 {[%emt 0:05:02]} 27. Rba1 {[%emt 0:04:14]} bxa4 {[%emt 0:03:41]} 28. g3 {[%emt 0:02:13]} Ra5 {[%emt 0:00:33]} 29. Rb1 {[%emt 0:03:35]} R8a6 {[%emt 0:11:13]} 30. Ra3 {[%emt 0:01:14]} c5 {[%emt 0:01:10]} 31. Rba1 {[%emt 0:03:59]} Kd6 {[%emt 0:07:20]} 32. f4 {[%emt 0:00:20]} c4 {[%emt 0:02:28]} 33. R3a2 {[%emt 0:04:09]} cxd3+ {[%emt 0:01:38]} 34. Kxd3 {[%emt 0:00:06]} Nc4 {[%emt 0:00:11]} 35. Ke2 {[%emt 0:01:13]} a3 {[%emt 0:00:45]} 36. Rb1 {[%emt 0:02:07]} Nb2 {[%emt 0:02:59]} 37. Rxa3 {[%emt 0:01:31]} Rxa3 {[%emt 0:00:54]} 1/2-1/2

[Event "Romanian Women Championship 2024"]
[Site "Eforie Nord"]
[Date "2024.03.01"]
[Round "8.9"]
[White "Vorniceanu, Alina"]
[Black "Batagan, Ilinca-Petra"]
[Result "0-1"]
[ECO "D94"]
[WhiteElo "1476"]
[BlackElo "1859"]
[Annotator "NA RC"]
[PlyCount "136"]
[EventDate "2024.02.24"]
[EventType "swiss"]
[EventCountry "ROU"]
[SourceTitle "playchess.com"]
[Source "ChessBase"]
[SourceQuality "1"]
[TimeControl "40/5400+30:900+30"]

1. c4 {[%emt 0:00:03]} Nf6 {[%emt 0:06:34]} 2. Nf3 {[%emt 0:00:13]} g6 {[%emt 0:00:17]} 3. d4 {[%emt 0:00:22]} Bg7 {[%emt 0:00:31]} 4. Nc3 {[%emt 0:00:11]} d5 {[%emt 0:00:24]} 5. e3 {[%emt 0:00:43]} O-O {[%emt 0:02:11]} 6. h3 {[%emt 0:00:36]} c5 {[%emt 0:01:28]} 7. Bd3 {[%emt 0:03:14]} cxd4 {[%emt 0:05:12]} 8. exd4 {[%emt 0:01:49]} Nc6 {[%emt 0:04:45]} 9. a3 {[%emt 0:01:21]} a6 {[%emt 0:04:31]} 10. O-O {[%emt 0:01:12]} dxc4 {[%emt 0:01:05]} 11. Bxc4 {[%emt 0:00:08]} b5 {[%emt 0:01:05]} 12. Ba2 {[%emt 0:01:46]} e6 {[%emt 0:06:34]} 13. Be3 {[%emt 0:07:04]} Ne7 {[%emt 0:08:09]} 14. Rc1 {[%emt 0:03:59]} Bb7 {[%emt 0:01:06]} 15. Qe2 {[%emt 0:03:13]} Ned5 {[%emt 0:05:03]} 16. Rfd1 {[%emt 0:09:46]} Qb6 {[%emt 0:07:40]} 17. Ne5 {[%emt 0:02:47]} Nxe3 {[%emt 0:05:03]} 18. Qxe3 {[%emt 0:09:03]} Rfd8 {[%emt 0:01:03]} 19. Qf4 {[%emt 0:04:14]} Qa7 {[%emt 0:14:24]} 20. g4 {[%emt 0:23:33]} Bd5 {[%emt 0:03:56]} 21. Nxd5 {[%emt 0:05:48]} Nxd5 {[%emt 0:00:42]} 22. Qg3 {[%emt 0:04:31]} Qb7 {[%emt 0:05:45]} 23. Rc2 {[%emt 0:04:38]} Rac8 {[%emt 0:02:12]} 24. Rdc1 {[%emt 0:00:26]} Rxc2 {[%emt 0:01:09]} 25. Rxc2 {[%emt 0:00:01]} Rc8 {[%emt 0:00:28]} 26. Bxd5 {[%emt 0:01:13]} exd5 {[%emt 0:00:24]} 27. Rc3 {[%emt 0:06:25]} Bxe5 {[%emt 0:02:49]} 28. dxe5 {[%emt 0:01:22]} d4 {[%emt 0:01:08]} 29. Rxc8+ {[%emt 0:00:22]} Qxc8 {[%emt 0:00:01]} 30. Qf4 {[%emt 0:00:33]} Qd7 {[%emt 0:01:54]} 31. Kf1 {[%emt 0:00:56]} Qd5 {[%emt 0:00:19]} 32. Ke1 {[%emt 0:01:21]} d3 {[%emt 0:02:46]} 33. Qe3 {[%emt 0:03:13]} Qh1+ {[%emt 0:00:54]} 34. Kd2 {[%emt 0:00:09]} Qb1 {[%emt 0:00:02]} 35. Qxd3 {[%emt 0:00:26]} Qxb2+ {[%emt 0:00:02]} 36. Kd1 {[%emt 0:01:07]} Qxe5 {[%emt 0:00:12]} 37. Kc2 {[%emt 0:00:40]} Qc5+ {[%emt 0:00:12]} 38. Kb3 {[%emt 0:00:24]} Qxf2 {[%emt 0:00:19]} 39. g5 {[%emt 0:00:10]} Qb6 {[%emt 0:00:31]} 40. h4 {[%emt 0:00:00]} a5 {[%emt 0:00:00]} 41. Qc3 {[%emt 0:01:10]} Qe6+ {[%emt 0:04:58]} 42. Kb2 {[%emt 0:00:10]} Qe2+ {[%emt 0:02:17]} 43. Ka1 {[%emt 0:00:22]} Qd1+ {[%emt 0:04:12]} 44. Ka2 {[%emt 0:00:42]} Qd5+ {[%emt 0:00:09]} 45. Ka1 {[%emt 0:00:24]} a4 {[%emt 0:05:11]} 46. Qc8+ {[%emt 0:07:38]} Kg7 {[%emt 0:00:05]} 47. Qg4 {[%emt 0:01:23]} Kf8 {[%emt 0:00:46]} 48. Qc8+ {[%emt 0:00:38]} Kg7 {[%emt 0:01:37]} 49. Qc3+ {[%emt 0:00:06]} Kf8 {[%emt 0:00:12]} 50. Qc8+ {[%emt 0:00:34]} Ke7 {[%emt 0:00:01]} 51. Qc7+ {[%emt 0:01:08]} Ke6 {[%emt 0:00:12]} 52. Qc8+ {[%emt 0:00:27]} Ke5 {[%emt 0:00:21]} 53. Qc7+ {[%emt 0:00:38]} Kf5 {[%emt 0:00:46]} 54. Qc1 {[%emt 0:02:26]} Kg4 {[%emt 0:01:24]} 55. Qe1 {[%emt 0:00:45]} Qd4+ {[%emt 0:00:18]} 56. Ka2 {[%emt 0:00:27]} Qc4+ {[%emt 0:00:09]} 57. Ka1 {[%emt 0:00:19]} Kf4 {[%emt 0:01:47]} 58. Qf2+ {[%emt 0:01:29]} Ke4 {[%emt 0:00:10]} 59. Qe1+ {[%emt 0:00:30]} Kd5 {[%emt 0:01:40]} 60. Qe7 {[%emt 0:01:11]} Qd4+ {[%emt 0:02:09]} 61. Ka2 {[%emt 0:00:39]} Qc4+ {[%emt 0:01:10]} 62. Ka1 {[%emt 0:00:20]} Kd4 {[%emt 0:00:23]} 63. Qf6+ {[%emt 0:00:44]} Ke3 {[%emt 0:01:40]} 64. Qe5+ {[%emt 0:01:22]} Kf3 {[%emt 0:00:35]} 65. Qe1 {[%emt 0:00:27]} Qd4+ {[%emt 0:00:17]} 66. Ka2 {[%emt 0:00:34]} Qe3 {[%emt 0:00:29]} 67. Qh1+ {[%emt 0:00:17]} Kg3 {[%emt 0:00:10]} 68. Qd5 {[%emt 0:02:00]} Qe6 {[%emt 0:00:21]} 0-1

[Event "Romanian Women Championship 2024"]
[Site "Eforie Nord"]
[Date "2024.03.01"]
[Round "8.10"]
[White "Sariteanu, Sabina"]
[Black "Aldea, Maria-Antonia"]
[Result "0-1"]
[ECO "B25"]
[WhiteElo "1700"]
[BlackElo "1726"]
[Annotator "NA RC"]
[PlyCount "144"]
[EventDate "2024.02.24"]
[EventType "swiss"]
[EventCountry "ROU"]
[SourceTitle "playchess.com"]
[Source "ChessBase"]
[SourceQuality "1"]
[TimeControl "40/5400+30:900+30"]

1. e4 {[%emt 0:00:05]} c5 {[%emt 0:00:06]} 2. Nc3 {[%emt 0:00:32]} Nc6 {[%emt 0:00:05]} 3. g3 {[%emt 0:00:05]} g6 {[%emt 0:00:06]} 4. Bg2 {[%emt 0:00:22]} Bg7 {[%emt 0:00:06]} 5. d3 {[%emt 0:00:40]} d6 {[%emt 0:00:21]} 6. f4 {[%emt 0:00:07]} e5 {[%emt 0:01:40]} 7. Nf3 {[%emt 0:00:10]} Nge7 {[%emt 0:01:58]} 8. O-O {[%emt 0:00:13]} O-O {[%emt 0:00:09]} 9. Be3 {[%emt 0:00:13]} b6 {[%emt 0:04:31]} 10. h3 {[%emt 0:01:34]} Be6 {[%emt 0:07:57]} 11. Ng5 {[%emt 0:00:31]} h6 {[%emt 0:02:39]} 12. Nxe6 {[%emt 0:00:09]} fxe6 {[%emt 0:00:01]} 13. Qd2 {[%emt 0:00:36]} Kh7 {[%emt 0:01:03]} 14. fxe5 {[%emt 0:01:39]} Nxe5 {[%emt 0:03:49]} 15. Rxf8 {[%emt 0:00:08]} Qxf8 {[%emt 0:01:35]} 16. Rf1 {[%emt 0:00:07]} Qd8 {[%emt 0:01:50]} 17. Ne2 {[%emt 0:00:14]} Qd7 {[%emt 0:02:47]} 18. Nf4 {[%emt 0:01:40]} Rf8 {[%emt 0:04:30]} 19. c3 {[%emt 0:01:15]} d5 {[%emt 0:09:16]} 20. h4 {[%emt 0:00:21]} d4 {[%emt 0:22:38]} 21. cxd4 {[%emt 0:03:49]} cxd4 {[%emt 0:00:10]} 22. Bf2 {[%emt 0:00:02]} Ng4 {[%emt 0:08:13]} 23. Qd1 {[%emt 0:04:46]} h5 {[%emt 0:06:19]} 24. Qb3 {[%emt 0:00:23]} Rf6 {[%emt 0:02:45]} 25. e5 {[%emt 0:02:20]} Nxe5 {[%emt 0:00:55]} 26. Re1 {[%emt 0:00:05]} Qd6 {[%emt 0:02:33]} 27. Qb5 {[%emt 0:02:20]} Ng4 {[%emt 0:03:23]} 28. Nh3 {[%emt 0:01:18]} Nxf2 {[%emt 0:00:42]} 29. Nxf2 {[%emt 0:00:07]} Qxg3 {[%emt 0:00:34]} 30. Re2 {[%emt 0:00:14]} Qxh4 {[%emt 0:01:27]} 31. Ne4 {[%emt 0:00:20]} Rf5 {[%emt 0:00:33]} 32. Qd7 {[%emt 0:00:25]} Be5 {[%emt 0:01:55]} 33. Rf2 {[%emt 0:00:24]} Bh2+ {[%emt 0:02:37]} 34. Kf1 {[%emt 0:00:08]} Rxf2+ {[%emt 0:01:13]} 35. Nxf2 {[%emt 0:00:10]} Qf6 {[%emt 0:02:13]} 36. Ke2 {[%emt 0:00:15]} Kh6 {[%emt 0:02:12]} 37. Ne4 {[%emt 0:00:10]} Qg7 {[%emt 0:02:36]} 38. Qxa7 {[%emt 0:00:03]} Nd5 {[%emt 0:00:39]} 39. Qa8 {[%emt 0:00:44]} Nf4+ {[%emt 0:00:35]} 40. Kf3 {[%emt 0:00:00]} Nxd3 {[%emt 0:00:00]} 41. Qe8 {[%emt 0:00:59]} e5 {[%emt 0:05:51]} 42. Bh3 {[%emt 0:01:01]} Nc5 {[%emt 0:02:53]} 43. Nxc5 {[%emt 0:02:56]} Qf6+ {[%emt 0:00:16]} 44. Ke2 {[%emt 0:00:39]} bxc5 {[%emt 0:00:07]} 45. Bg2 {[%emt 0:00:30]} c4 {[%emt 0:00:42]} 46. Qa8 {[%emt 0:01:28]} Bg3 {[%emt 0:01:44]} 47. a4 {[%emt 0:00:26]} d3+ {[%emt 0:02:24]} 48. Kd2 {[%emt 0:00:29]} Qf2+ {[%emt 0:00:36]} 49. Kc3 {[%emt 0:00:09]} Qd4+ {[%emt 0:00:19]} 50. Kb4 {[%emt 0:00:17]} d2 {[%emt 0:01:44]} 51. Qh8+ {[%emt 0:00:10]} Kg5 {[%emt 0:00:01]} 52. Bf3 {[%emt 0:00:54]} d1=Q {[%emt 0:01:04]} 53. Bxd1 {[%emt 0:00:06]} Qxd1 {[%emt 0:00:00]} 54. Qf8 {[%emt 0:00:11]} Be1+ {[%emt 0:02:02]} 55. Kc5 {[%emt 0:00:16]} Qd7 {[%emt 0:02:58]} 56. Qf1 {[%emt 0:00:46]} Bd2 {[%emt 0:00:43]} 57. Qg2+ {[%emt 0:00:15]} Kh6 {[%emt 0:00:03]} 58. Kxc4 {[%emt 0:01:08]} Qxa4+ {[%emt 0:00:37]} 59. Kc5 {[%emt 0:00:13]} Be3+ {[%emt 0:00:46]} 60. Kd6 {[%emt 0:00:12]} Qd4+ {[%emt 0:00:17]} 61. Ke6 {[%emt 0:00:17]} Qg4+ {[%emt 0:00:21]} 62. Qxg4 {[%emt 0:00:10]} hxg4 {[%emt 0:00:01]} 63. Kxe5 {[%emt 0:00:15]} g3 {[%emt 0:00:04]} 64. Ke4 {[%emt 0:00:06]} g2 {[%emt 0:00:07]} 65. Kxe3 {[%emt 0:00:06]} g1=Q+ {[%emt 0:00:03]} 66. Kd3 {[%emt 0:00:04]} g5 {[%emt 0:00:11]} 67. Kc4 {[%emt 0:00:05]} g4 {[%emt 0:00:04]} 68. b4 {[%emt 0:00:03]} g3 {[%emt 0:00:04]} 69. b5 {[%emt 0:00:03]} g2 {[%emt 0:00:13]} 70. Kd5 {[%emt 0:00:05]} Qd1+ {[%emt 0:00:06]} 71. Kc6 {[%emt 0:00:04]} g1=Q {[%emt 0:00:06]} 72. b6 {[%emt 0:00:06]} Qg6+ {[%emt 0:00:16]} 0-1